Workbook

Sheet Current Cost
A1: Current Cost (MONTHLY)
A2: Fixed | B2: Cost/Month | C2: Variable | D2: Cost/Month | F2: Expenses | G2: Total Cost
A3: Land | B3: 500 | C3: Fertilizer and Seed | D3: 100 | F3: =A3 -> Land | G3: =B3 -> 500
A4: Electricity | B4: 300 | C4: Labor | D4: 200 | F4: =A4 -> Electricity | G4: =D8 -> 600
A5: Equipment and Maintenance (Milking) | B5: 200 | C5: Pharmaceuticals | D5: 200 | F5: Equipment and Maintenance (Milking) | G5: =B4 -> 300
A6: Equipment and Maintenance (Land) | B6: 600 | C6: Hauling Cost | D6: 100 | F6: Equipment and Maintenance (Land) | G6: 200
A7: Taxes | B7: 800 | C7: Artificial Insemination (AI) | D7: 300 | F7: Taxes | G7: 600
A8: Regulations | B8: 900 | C8: Feed | D8: 600 | F8: Regulations | G8: 800
A9: Gas | B9: 1000 | F9: Gas | G9: 900
F10: =C3 -> Fertilizer and Seed | G10: 1000
F11: Labor | G11: =D3 -> 100
F12: Pharmaceuticals | G12: =D4 -> 200
F13: Hauling Cost | G13: 200
F14: Artificial Insemination (AI) | G14: 100
F15: Feed | G15: 300
A16: Totals Rows | B16: =SUM(B3:B15) -> 4300 | D16: =SUM(D3:D15) -> 1500
F29: TOTAL/MONTH | G29: =SUM(G3:G28) -> 5800
F30: TOTAL/YEAR | G30: =G29*12 -> 69600
B35: Current Milking Herd Size | C35: 50
B36: Average Gallons/Cow | C36: 3.65
B37: Gallons of milk/Day | C37: =C35*C36 -> 182.5

Sheet PC
A1: PROJECTED COST (MONTHLY)
A2: Fixed | B2: Fixed Cost ($) | C2: Variable | D2: Cost/Month | G2: Expenses | H2: Budget | I2: Expenses
A3: Land | B3: ='Current Cost'!B3 -> 500 | C3: Fertilizer and Seed | D3: 273.9726027 | G3: =A3 -> Land | H3: 400 | I3: =B3 -> 500
A4: Electricity | B4: ='Current Cost'!B4 -> 300 | C4: Labor | D4: 547.9452055 | G4: Electricity | H4: 100 | I4: =B4 -> 300
A5: Equipment and Maintenance (Milking) | B5: ='Current Cost'!B5 -> 200 | C5: Pharmaceuticals | D5: 547.9452055 | G5: Equipment and Maintenance (Milking) | H5: 200 | I5: 200
A6: Equipment and Maintenance (Land) | B6: ='Current Cost'!B6 -> 600 | C6: Hauling Cost | D6: 273.9726027 | G6: Equipment and Maintenance (Land) | H6: 435 | I6: 600
A7: Taxes | B7: ='Current Cost'!B7 -> 800 | C7: Artificial Insemination (AI) | D7: 821.9178082 | G7: Taxes | H7: 800 | I7: 800
A8: Regulations | B8: ='Current Cost'!B8 -> 900 | C8: Feed | D8: 1643.835616 | G8: Regulations | H8: 900 | I8: 900
A9: Gas | B9: ='Current Cost'!B9 -> 1000 | G9: Gas | H9: 1000 | I9: 1000
G10: =C3 -> Fertilizer and Seed | H10: 272 | I10: =D3 -> 273.9726027
G11: Labor | H11: 547.95 | I11: =D4 -> 547.9452055
G12: Pharmaceuticals | H12: 547.95 | I12: 547.9452055
G13: Hauling Cost | H13: 274 | I13: 273.9726027
G14: Artificial Insemination (AI) | H14: 820 | I14: 821.9178082
G15: Feed | H15: 1643.84 | I15: 1643.835616
A16: Totals Rows | B16: =SUM(B3:B15) -> 4300 | D16: =SUM(D3:D7) -> 2465.753425
G29: TOTAL/Month | I29: =SUM(I3:I28) -> 8409.589041
G30: Total/Year | I30: =I29*12 -> 100915.0685
A41: Gallons Needed for dairy Operations | C41: 500
A42: Additional gallons needed for new dairy operation | C42: =C41-'Current Cost'!C37 -> 317.5
A43: Additional Cows Needed | C43: =C42/'Current Cost'!C36 -> 86.98630137
A44: New Desired Herd Size | C44: ='Current Cost'!C35+C43 -> 136.9863014
A45: Cost Per Cow/Month | C45: ='Current Cost'!G29/'Current Cost'!C35 -> 116

Sheet 5Year
A1: Equipment
A2: Equipment | C2: BOTTLE FILLER/CAPPER | E2: BOTTLE WASHER | G2: WALK-IN COOLER | I2: REFRIGERATED TRUCK/TRAILER | K2: Total Equipment Cost | L2: =SUM(B5,D5,F5,H5,J5) -> 0
A3: Specifications | C3: Specifications | E3: Specifications | G3: Specifications | I3: Specifications
A4: Contact Info | C4: Contact Info | E4: Contact Info | G4: Contact Info | I4: Contact Info
A5: Price | C5: Price | E5: Price | G5: Price | I5: Price
A7: Year 1
A8: gal/day | B8: =B14*B15 -> 229.95 | D8: Operating Cost/yr | E8: =((('Current Cost'!G30)/B12)*B14)+C20+C19 -> 201414.1 | G8: Yearly Revenue
A9: half gal/day | B9: =B8*2 -> 459.9 | D9: Start Up Cost | E9: =(B5+D5+F5+H5+J3)+B17 -> 20000 | G9: Year 1 | H9: =D19 -> 131099.25
A10: Price Farm is Paid/half gal | B10: 3 | D10: Total cost including start up | E10: =E8+E9 -> 221414.1 | G10: Year 2 | H10: =D31 -> 245711.6
A11: Daily Revenue for milk | B11: =B9*B10 -> 1379.7 | G11: Year 3 | H11: =D44 -> 361107.05
A12: Herd Size at Begingin of Year | B12: ='Current Cost'!C35 -> 50 | D12: # Days Milking | E12: =E10/B11 -> 160.4798869 | G12: Year 4 | H12: =D58 -> 415751.9
A13: Additional Cows Purchased this Year | B13: 13 | D13: Out of Total Days of Year | E13: 365 | G13: Year 5 | H13: =D72 -> 470396.75
A14: New Herd Size | B14: =B12+B13 -> 63
A15: Gallons/day per Cow | B15: ='Current Cost'!C36 -> 3.65 | D15: Percentage of Time Working at Max Capacity in order to Breakeven | E15: =E12/E13 -> 0.4396709231
A16: Annual Cost Per Cow | B16: =PC!C45*12 -> 1392
A17: Building Renovation | B17: 20000 | D17: =(B11*0.7)*E13 -> 352513.35 | E17: Potential Revenue Per Year
A18: Bottle Cost | B18: 0.6 | D18: =D17-E8 -> 151099.25 | E18: Revenue Minus Operating Cost
A19: Bottle Cost/Day | B19: =B18*B9 -> 275.94 | C19: =B19*365 -> 100718.1 | D19: =D17-E10 -> 131099.25 | E19: Revenue Minus Operating and Start-Up Cost
A20: Price per Cow | B20: 1000 | C20: =B20*B13 -> 13000 | D20: =IF(D19<0, D19, 0) -> 0 | E20: Loss Incurred
A21: Year 2 | G21: Breakeven Operation Percentage
A22: gal/day | B22: =B28*B29 -> 277.4 | D22: Operating Cost/yr | E22: =((('Current Cost'!G30)/B12)*B28)+C32+C33 -> 240293.2 | G22: Year 1 | H22: =E15 -> 0.4396709231
A23: half gal/day | B23: =B22*2 -> 554.8 | G23: Year 2 | H23: =E29 -> 0.3955404556
A24: Price Farm is Paid/half gal | B24: 3 | G24: Year 3 | H24: =E42 -> 0.392414764
A25: Daily Revenue for milk | B25: =B23*B24 -> 1664.4 | G25: Year 4 | H25: =E56 -> 0.3900858173
A26: Herd Size at Begingin of Year | B26: =B14 -> 63 | D26: # Days Milking | E26: =E22/B25 -> 144.3722663 | G26: Year 5 | H26: =E70 -> 0.3882834151
A27: Additional Cows Purchased thie Year | B27: 13 | D27: Out of Total Days of Year | E27: 365
A28: New Herd Size | B28: =B26+B27 -> 76
A29: Gallons/day per Cow | B29: ='Current Cost'!C36 -> 3.65 | D29: Percentage of Time Working at Max Capacity in order to Breakeven | E29: =E26/E27 -> 0.3955404556
A30: Annual Cost Per Cow | B30: =PC!C45*12 -> 1392 | D30: =(B25*0.8)*E27 -> 486004.8 | E30: Potential Revenue Per Year
A31: Bottle Cost | B31: 0.6 | D31: =D30-E22 -> 245711.6 | E31: Revenue Minus Operating Cost | G31: Herd Size Growth
A32: Bottle Cost/Day | B32: =B31*B23 -> 332.88 | C32: =B32*365 -> 121501.2 | D32: =IF(D31<0, D31, 0) -> 0 | E32: Loss Incurred | G32: Year 1 | H32: =B14 -> 63
A33: Price per Cow | B33: 1000 | C33: =B33*B27 -> 13000 | D33: =D31+D20 -> 245711.6 | E33: Revenue-Loss Incured Year to date
A34: Year 3 | G34: Year 2 | H34: =B28 -> 76
A35: gal/day | B35: =B41*B42 -> 324.85 | D35: Operating Cost/yr | E35: =((('Current Cost'!G30)/B12)*B41)+C45+C46 -> 279172.3 | G35: Year 3 | H35: =B41 -> 89
A36: half gal/day | B36: =B35*2 -> 649.7 | G36: Year 4 | H36: =B55 -> 102
A37: Price Farm is Paid/half gal | B37: 3 | G37: Year 5 | H37: =B69 -> 115
A38: Daily Revenue for milk | B38: =B36*B37 -> 1949.1
A39: Herd Size at Begingin of Year | B39: =B28 -> 76 | D39: # Days Milking | E39: =E35/B38 -> 143.2313888
A40: Additional Cows Purchased thie Year | B40: 13 | D40: Out of Total Days of Year | E40: 365
A41: New Herd Size | B41: =B39+B40 -> 89
A42: Gallons/day per Cow | B42: ='Current Cost'!C36 -> 3.65 | D42: Percentage of Time Working at Max Capacity in order to Breakeven | E42: =E39/E40 -> 0.392414764
A43: Annual Cost Per Cow | B43: =12*PC!C45 -> 1392 | D43: =(B38*0.9)*E40 -> 640279.35 | E43: Potential Revenue Per Year
A44: Bottle Cost | B44: 0.6 | D44: =D43-E35 -> 361107.05 | E44: Revenue Minus Operating Cost
A45: Bottle Cost/Day | B45: =B44*B36 -> 389.82 | C45: =B45*365 -> 142284.3
A46: Price per Cow | B46: 1000 | C46: =B46*B40 -> 13000 | D46: =IF(D45<0, D45, 0) -> 0 | E46: Loss Incured
D47: =D44+D32+D20 -> 361107.05 | E47: Revenue-Loss Incured Year to date
A48: Year 4
A49: gal/day | B49: =B55*B56 -> 372.3 | D49: Operating Cost/yr | E49: =((('Current Cost'!G30)/B12)*B55)+C59+C60 -> 318051.4
A50: half gal/day | B50: =B49*2 -> 744.6
A51: Price Farm is Paid/half gal | B51: 3
A52: Daily Revenue for milk | B52: =B50*B51 -> 2233.8
A53: Herd Size at Begingin of Year | B53: =B41 -> 89 | D53: # Days Milking | E53: =E49/B52 -> 142.3813233
A54: Additional Cows Purchased thie Year | B54: 13 | D54: Out of Total Days of Year | E54: 365
A55: New Herd Size | B55: =B53+B54 -> 102
A56: Gallons/day per Cow | B56: ='Current Cost'!C36 -> 3.65 | D56: Percentage of Time Working at Max Capacity in order to Breakeven | E56: =E53/E54 -> 0.3900858173
A57: Annual Cost Per Cow | B57: =12*PC!C45 -> 1392 | D57: =(B52*0.9)*E54 -> 733803.3 | E57: Potential Revenue Per Year
A58: Bottle Cost | B58: 0.6 | D58: =D57-E49 -> 415751.9 | E58: Revenue Minus Operating Cost
A59: Bottle Cost/Day | B59: =B58*B50 -> 446.76 | C59: =B59*365 -> 163067.4
A60: Price per Cow | B60: 1000 | C60: =B60*B54 -> 13000 | D60: =IF(D59<0, D59, 0) -> 0 | E60: Loss Incured
D61: =D58+D60+D46+D32+D20 -> 415751.9 | E61: Revenue-Loss Incured Year to date
A62: Year 5
A63: gal/day | B63: =B69*B70 -> 419.75 | D63: Operating Cost/yr | E63: =((('Current Cost'!G30)/B12)*B69)+C73+C74 -> 356930.5
A64: half gal/day | B64: =B63*2 -> 839.5
A65: Price Farm is Paid/half gal | B65: 3
A66: Daily Revenue for milk | B66: =B64*B65 -> 2518.5
A67: Herd Size at Begingin of Year | B67: =B55 -> 102 | D67: # Days Milking | E67: =E63/B66 -> 141.7234465
A68: Additional Cows Purchased thie Year | B68: 13 | D68: Out of Total Days of Year | E68: 365
A69: New Herd Size | B69: =B67+B68 -> 115
A70: Gallons/day per Cow | B70: ='Current Cost'!C36 -> 3.65 | D70: Percentage of Time Working at Max Capacity in order to Breakeven | E70: =E67/E68 -> 0.3882834151
A71: Annual Cost Per Cow | B71: =12*PC!C45 -> 1392 | D71: =(B66*E68)*0.9 -> 827327.25 | E71: Potential Revenue Per Year
A72: Bottle Cost | B72: 0.6 | D72: =D71-E63 -> 470396.75 | E72: Revenue Minus Operating Cost
A73: Bottle Cost/Day | B73: =B72*B64 -> 503.7 | C73: =B73*365 -> 183850.5
A74: Price per Cow | B74: 1000 | C74: =B74*B68 -> 13000 | D74: =IF(D73<0, D73, 0) -> 0 | E74: Loss Incured
D75: =D72+D74+D60+D46+D32+D20 -> 470396.75 | E75: Revenue-Loss Incured Year to date

Sheet Sheet2 (hidden)
A1: Equipment | B1: Maker | C1: Specs | D1: Contact Information | E1: Price
A3: PASTEURIZER
A4: 15 Gallon Vat Pasteurizer (Bob-White Systems) | B4: Bob-White Systems | C4: Precision temperature control. Easy to clean. Everything you need is included. | D4: 802-763-2777 | E4: 15995
A5: 30 Gallon Vat Pasteurizer (Bob-White Systems) | B5: Bob-White Systems | C5: Precision temperature control. Easy to clean. Everything you need is included. | D5: 802-763-2777 | E5: 21699
A6: 15 Gallon Vat Pasteurizer (Bob-White Systems) | B6: Jaybee Precision | C6: Everything you need is included. 7 gallon minimum. | D6: 800-236-3956, sales@northwesterntools.com | E6: 13999
A7: 30 Gallon Vat Pasteurizer (Jaybee Precisions) | B7: Jaybee Precision | C7: Everything you need is included. 17 gallon minimum. | D7: 800-236-3956, sales@northwesterntools.com | E7: 16999
A8: 50 Gallon Pasteurizer (kleenFlo) | B8: KleenFlo | C8: Call for further information. | D8: 765-874-1292, ron@kleenflo.us | E8: 19500
A9: 75 Gallon Pasteurizer (KleenFlo) | B9: KleenFlo | C9: Call for further information. | D9: 765-874-1292, ron@kleenflo.us | E9: 20000
A10: 100 Gallon Pasteurizer (KleenFlo) | B10: KleenFlo | C10: Call for further information. | D10: 765-874-1292, ron@kleenflo.us | E10: 20500
A11: 200 Gallon Batch Pasteurizer (Anco) | B11: Anco | C11: Includes Chart Recorder & Thermometers for Airspace & Product Temperature, electric Air Space Heater, and Leak Detect Valve | D11: (920)569-3530, info@ancoequipment.com | E11: 22000
A12: 45 Gallon Vat Pasteurizer (MicroDairy Designs) | B12: MicroDairy Designs | C12: includes heater, airspace heater, agitator, Digital Indicating Thermometers with Two-Pen Chart Recorder | D12: (301) 824-3689 | E12: 13400
A13: 99 Gallon Vat Pasteurizer (MicroDairy Designs) | B13: MicroDairy Designs | C13: includes heater, airspace heater, agitator, Digital Indicating Thermometers with Two-Pen Chart Recorder | D13: (301) 824-3689 | E13: 18600
A14: 200 Gallon Batch Pasteurizer (MicroDairy Designs) | B14: Schier Company | C14: Includes recorders, thermometer, and electric air space heater | D14: kindra@schiercompany.com | E14: =16300+5500 -> 21800
D16: Pasteurizer Average Cost | E16: =(AVERAGE(E4:E14)) -> 18590.18182
D17: Pasteurizer Standard Deviation | E17: =STDEV(E4:E14) -> 3087.736511
D18: Pasteurizer Cost Upper Limit | E18: =E16+E17 -> 21677.91833
D19: Pasteurizer Cost Lower Limit | E19: =E16-E17 -> 15502.44531
A21: BOTTLE FILLER/CAPPER
A22: Filler/Capper (Schier Company) | B22: Schier Company | C22: High-technology 6 valve filler with capper for gallons. Industrial use. | D22: kindra@schiercompany.com | E22: 29500
A23: Automatic Filler/Capper (Bob-White Systems) | B23: Bob-White Systems | C23: Fills glass or plastic bottles. Removable template to accommodate different size bottles. Manual foot pedal. | D23: 802-763-2777 | E23: 7900
A24: Filler/Capper (Agri-Service LLC through Dairy Heritage) | B24: Agri-Service LLC through Dairy Heritage | C24: Single valve for half gallon bottles; Detailed quote available | D24: Anthony Ambrosio-(301)223-6877 | E24: =8800+4600 -> 13400
D26: Filler/Capper Average Cost | E26: =AVERAGE(E23:E24) -> 10650
D27: Filler/Capper Standard Deviation | E27: =STDEV(E23:E24) -> 3889.087297
D28: Filler/Capper Cost Upper Limit | E28: =E26+E27 -> 14539.0873
D29: Filler/Capper Cost Lower Limit | E29: =E26-E27 -> 6760.912703
A31: BOTTLE WASHER
A32: Bottle Washer and Racks | B32: Agri-Service LLC through Dairy Heritage | C32: Detailed quote available | D32: Anthony Ambrosio-(301)223-6877 | E32: =14745+1775 -> 16520
D34: Bottle Washer Average Cost | E34: =E32 -> 16520
A36: WALK-IN COOLER
A37: Walk-in cooler (Bush) | B37: Bush | C37: 5 ft 11 x 9 ft 9 x 7 ft 11; with floor, light fixture, and digital thermometer | D37: bushrefrigeration.com | E37: =3800+750 -> 4550
A38: Walk-in cooler (Elite Rest. Equip Leader) | B38: Elite Restaurant Equipment Leader WIC88 | C38: 8 ft x 8ft | D38: eliterestaurantequipment.com | E38: 4497.9
A39: Walk-in cooler (Kolpak) | B39: Kolpak | C39: 6 ft x 12 ft x 7 ft 6 | D39: webstaurantstore.com | E39: 5959
D41: Walk-in Cooler Average Cost | E41: =AVERAGE(E37:E39) -> 5002.3
D42: Walk-in Cooler Standard Deviaton | E42: =STDEV(E37:E39) -> 828.9359264
D43: Walk-in Cooler Cost Upper Limit | E43: =E41+E42 -> 5831.235926
D44: Walk-in Cooler Cost Lower Limit | E44: =E41-E42 -> 4173.364074
A46: REFRIGERATED TRUCK/TRAILER
A48: 2016 Chevy | B48: 43500
A49: 2016 Ford | B49: 46570
A50: 2016 Ford Transit | B50: 49999
A51: Polar Temp Trailer Transport | B51: 3849
A52: Polar Temp for truck bed | B52: 5829
A53: Polar Temp Trailer Transport | B53: 7639
D54: TOTAL COST INCLUDING PASTEURIZER, FILLER/CAPPER, AND COOLER | E54: =SUM(E41,E26,E16) -> 34242.48182
D55: TOTAL COST INCLUDING ALL INPUTS' AVERAGE COST
D56: ESTIMATED MAX COST | E56: =SUM(E43,E28,E18) -> 42048.24155
D57: TOTAL COST INCLUDING TRUCK | E57: =E54+#REF! -> 
D58: TOTAL COST INCLUDING TRAILER | E58: =E54+#REF! -> 

Sheet Instructions
E8: INSTRUCTIONS

Sheet Video
